bitfinex/quotes_SOLUSD_20250126
["timestamp","ask_amount","ask_price","bid_price","bid_amount"]
[1737872617715,0.03,259.03,259.0,20.0]
[1737872617879,0.03,259.03,258.94,3.9247]
[1737872618387,0.03,259.03,258.94,23.9247]
[1737872619310,0.03,259.03,258.98,0.063]
[1737872624589,6.71725251,259.02,258.98,0.063]
[1737872625905,6.71725251,259.0,258.98,0.063]
[1737872628297,3.8611,258.99,258.98,0.063]
[1737872629403,27.637984,258.99,258.98,0.063]
[1737872630611,29.190884,258.99,258.98,0.063]
[1737872636115,5.414,258.99,258.98,0.063]
[1737872636420,1.5529,258.99,258.98,0.063]
[1737872636595,0.03,259.0,258.98,0.063]
[1737872639222,6.74725251,259.0,258.98,0.063]
[1737872640528,10.60825251,259.0,258.98,0.063]
[1737872640817,104.676884,258.99,258.98,0.063]
[1737872641404,106.202084,258.99,258.98,0.063]
[1737872642517,23.776884,258.99,258.98,0.063]
[1737872648214,10.60825251,259.0,258.98,0.063]
[1737872648724,0.03,259.0,258.98,0.063]
[1737872650914,0.03,259.0,258.98,3.9242]
[1737872651422,6.71725251,258.99,258.98,0.063]
[1737872652122,30.49413651,258.99,258.98,0.063]
[1737872652634,34.35523651,258.99,258.98,0.063]
[1737872653516,6.71725251,258.99,258.98,0.063]
[1737872653820,0.03,259.0,258.98,0.063]
[1737872654215,6.71725251,258.99,258.98,0.063]
[1737872655830,0.03,259.0,258.98,0.063]
[1737872657228,6.71725251,258.99,258.98,0.063]
[1737872657532,0.03,259.0,258.98,0.063]
[1737872659122,6.71725251,258.99,258.98,0.063]
[1737872665555,30.49413651,258.99,258.98,0.063]
[1737872665847,43.776884,258.95,258.94,0.063]
[1737872666026,52.46873599,258.95,258.94,0.0001]
[1737872667041,23.776884,258.9,258.79,0.063]
[1737872667245,6.71725251,258.86,258.79,0.063]
[1737872667644,6.71725251,258.84,258.79,0.063]
[1737872667843,6.71725251,258.82,258.79,0.063]
[1737872668055,6.71725251,258.8,258.79,0.063]
[1737872669048,30.49413651,258.8,258.79,0.063]
[1737872669838,34.35803651,258.8,258.79,0.063]
[1737872671230,6.71725251,258.83,258.79,0.063]
[1737872671652,87.61725251,258.87,258.79,0.063]
[1737872673055,6.0099,258.95,258.79,0.063]
[1737872673056,6.71725251,258.91,258.79,23.927]
[1737872673352,87.61725251,258.93,258.79,23.927]
[1737872673648,80.9,258.93,258.79,23.927]
[1737872673849,80.9,258.93,258.8,20.38628975]
[1737872674151,10.47578264,258.97,258.85,1.6339]
[1737872674321,10.47578264,258.93,258.85,1.6339]
[1737872676341,10.47578264,258.87,258.79,5.5238]
[1737872676658,10.47578264,258.87,258.8,30.0]
[1737872677257,10.47578264,258.87,258.79,1.6598]
[1737872677832,10.47578264,258.85,258.79,1.6598]
[1737872680650,10.47578264,258.83,258.79,0.063]
[1737872681835,10.47578264,258.85,258.79,0.063]
[1737872682256,80.9,258.91,258.79,0.063]
[1737872682257,80.9,258.86,258.8,3.8639]
[1737872683157,80.9,258.86,258.79,0.063]
[1737872683662,80.9,258.86,258.79,3.927]
[1737872692468,80.9,258.86,258.79,0.063]
[1737872692469,10.47578264,258.85,258.79,0.063]
[1737872693045,10.47578264,258.83,258.79,0.063]
[1737872695867,80.9,258.85,258.79,3.927]
[1737872700076,80.9,258.84,258.79,3.927]
[1737872704280,80.9,258.91,258.8,30.0]
[1737872705875,91.37578264,258.91,258.8,30.0]
[1737872706871,91.37578264,258.91,258.81,3.8638]
[1737872707673,80.9,258.91,258.81,3.8638]
[1737872708073,84.7623,258.91,258.81,3.8638]
[1737872708974,80.9,258.9,258.81,3.8638]
[1737872712573,6.70502061,258.88,258.79,0.063]
[1737872713152,6.70502061,258.88,258.79,30.063]
[1737872713977,3.8629,258.87,258.79,30.063]
[1737872714470,3.8629,258.87,258.79,33.927]
[1737872714671,6.70502061,258.88,258.79,33.927]
[1737872715053,80.9,258.87,258.79,33.927]
[1737872720382,84.7629,258.87,258.79,30.063]
[1737872720885,80.9,258.86,258.79,30.063]
[1737872721256,80.9,258.86,258.79,0.063]
[1737872721985,80.9,258.85,258.79,0.063]
[1737872722281,6.70502061,258.8,258.79,0.063]
[1737872731897,6.70502061,258.82,258.79,0.063]
[1737872732108,3.8636,258.83,258.79,0.063]
[1737872732995,10.56882061,258.82,258.79,0.063]
[1737872733185,6.70502061,258.8,258.79,0.063]
[1737872734998,10.56892061,258.8,258.79,0.063]
[1737872736691,6.70502061,258.8,258.79,0.063]
[1737872736887,23.776884,258.84,258.79,0.063]
[1737872736888,10.56872061,258.82,258.79,0.063]
[1737872741902,6.70502061,258.8,258.79,0.063]
[1737872743806,10.56892061,258.8,258.79,0.063]
[1737872746505,34.34580461,258.8,258.79,0.063]
[1737872749312,10.56892061,258.8,258.79,0.063]
[1737872758010,6.70502061,258.84,258.79,0.063]
[1737872759716,6.70502061,258.88,258.79,0.063]
[1737872759895,6.70502061,258.88,258.79,3.9271]
[1737872760607,80.9,258.87,258.79,3.9271]
[1737872761532,80.9,258.87,258.8,20.0]
[1737872762599,80.9,258.87,258.81,20.0]
[1737872763830,80.9,258.87,258.82,3.8636]
[1737872764825,80.9,258.87,258.82,33.8636]
[1737872765426,80.9,258.91,258.82,33.8636]
[1737872766507,80.9,258.91,258.82,40.314]
[1737872768231,80.9,258.91,258.82,10.314]
[1737872768635,6.70502061,258.88,258.8,3.8638]
[1737872768934,6.70502061,258.88,258.81,30.0]
[1737872770439,6.70502061,258.84,258.81,30.0]
[1737872770615,6.70502061,258.84,258.79,0.063]
[1737872770814,6.70502061,258.82,258.79,0.063]
[1737872771016,6.70502061,258.8,258.79,0.063]
[1737872777245,30.48190461,258.8,258.79,0.063]
[1737872777769,37.65860409,258.8,258.79,0.063]
[1737872778050,37.65860409,258.8,258.72,0.063]
[1737872778051,20.0,258.76,258.72,0.063]
[1737872778257,6.70502061,258.73,258.72,0.063]
[1737872780564,10.57002061,258.73,258.72,0.063]
[1737872780852,6.70502061,258.75,258.72,0.063]
[1737872781054,6.70502061,258.79,258.72,0.063]
[1737872781427,80.9,258.78,258.72,0.063]
[1737872786254,80.9,258.77,258.72,0.063]
[1737872787362,80.9,258.77,258.72,3.9281]
[1737872787832,80.93,258.8,258.72,3.9281]
[1737872788032,80.93,258.8,258.73,1.5864]
[1737872789449,80.93,258.8,258.74,3.8648]
[1737872789847,80.93,258.8,258.74,33.8648]
[1737872790239,80.93,258.8,258.74,30.0]
[1737872790439,84.794,258.8,258.74,30.0]
[1737872791531,84.794,258.8,258.73,1.5864]
[1737872792141,80.9,258.79,258.73,1.5864]
[1737872797564,80.9,258.79,258.73,1.6494]
[1737872798160,80.9,258.78,258.73,1.6494]
[1737872800476,80.9,258.78,258.73,0.063]
[1737872800777,84.7643,258.78,258.73,0.063]
[1737872801148,6.70502061,258.77,258.73,0.063]
[1737872802075,80.9,258.76,258.73,0.063]
[1737872802369,80.9,258.75,258.73,0.063]
[1737872806371,91.46972061,258.75,258.73,0.063]
[1737872807173,80.9,258.74,258.73,0.063]
[1737872808053,23.776884,258.74,258.73,0.063]
[1737872811267,30.425084,258.74,258.73,0.0001]
[1737872816253,25.75148348,258.73,258.72,0.0001]
[1737872816474,36.32150409,258.73,258.72,0.0001]
[1737872816981,117.22150409,258.73,258.72,0.0001]
[1737872819476,144.04158653,258.73,258.72,0.0001]
[1737872819679,20.0,258.69,258.68,0.0001]
[1737872819860,50.48190461,258.69,258.68,0.0001]
[1737872823083,54.34750461,258.69,258.68,0.0001]
[1737872823887,47.642484,258.69,258.68,0.0001]
[1737872826986,48.61708348,258.69,258.68,0.0001]
[1737872831568,20.0,258.65,258.61,0.063]
[1737872831887,50.48190461,258.62,258.61,0.063]
[1737872832581,54.34850461,258.62,258.61,0.063]
[1737872832792,23.776884,258.61,258.55,0.063]
[1737872832990,6.70502061,258.56,258.55,0.063]
[1737872833286,30.48190461,258.56,258.55,0.063]
[1737872835584,34.34940461,258.56,258.55,0.063]
[1737872840097,50.48190461,258.54,258.51,0.063]
[1737872840282,24.776884,258.5,258.49,0.0001]
[1737872840596,31.48190461,258.5,258.49,0.0001]
[1737872842701,35.35030461,258.5,258.49,0.0001]
[1737872843200,36.32490409,258.5,258.49,0.0001]
[1737872845400,35.35030461,258.5,258.49,0.0001]
[1737872849904,28.645284,258.5,258.49,0.0001]
[1737872852403,29.61988348,258.5,258.49,0.0001]
[1737872855477,21.0,258.46,258.45,0.0001]
[1737872855784,44.776884,258.46,258.45,0.0001]
[1737872856704,37.22808529,258.46,258.45,0.0001]
[1737872857012,42.07168477,258.46,258.45,0.0001]
[1737872859901,3.869,258.46,258.45,0.0001]
[1737872862313,3.8985,258.5,258.45,0.0001]
[1737872862489,3.8985,258.5,258.45,1.0001]
[1737872862687,0.03,258.5,258.45,1.0001]
[1737872864318,0.03,258.5,258.49,1.0]
[1737872864501,0.03,258.5,258.45,1.0001]
[1737872866420,80.9,258.49,258.45,1.0001]
[1737872866901,80.9,258.49,258.48,1.0]
[1737872868013,80.9,258.49,258.46,1.0]
[1737872870196,80.93,258.49,258.46,1.0]
[1737872872312,80.93,258.49,258.48,1.0]
[1737872872693,80.93,258.49,258.46,1.0]
[1737872873117,80.93,258.49,258.48,1.0]
[1737872875344,80.93,258.49,258.46,1.0]
[1737872875505,84.7987,258.49,258.45,1.0001]
[1737872875709,84.7987,258.49,258.45,0.0001]
[1737872878318,80.9,258.48,258.45,0.0001]
[1737872878499,3.8689,258.47,258.45,0.0001]
[1737872880213,10.59687116,258.47,258.45,0.0001]
[1737872881231,10.59687116,258.47,258.45,1.0001]
[1737872884429,80.9,258.46,258.45,1.0001]
[1737872886515,80.9,258.46,258.45,0.0001]
[1737872889534,80.9,258.46,258.45,1.0001]
[1737872894736,80.9,258.46,258.45,0.0001]
[1737872895228,80.9,258.46,258.45,1.0001]
[1737872905325,80.93,258.46,258.45,1.0001]
[1737872907159,0.03,258.46,258.45,1.0001]
[1737872912658,0.03,258.46,258.45,31.0001]
[1737872913447,0.03,258.46,258.45,1.0001]
[1737872918744,0.03,258.46,258.45,31.0001]
[1737872921159,0.03,258.46,258.45,1.0001]
[1737872968519,0.03,258.46,258.45,0.0001]
[1737872971822,6.75459705,258.46,258.45,0.0001]
[1737872972323,0.03,258.46,258.45,1.0001]
[1737872974019,0.03,258.46,258.45,4.8693]
[1737872974622,0.03,258.46,258.45,58.646184]
[1737872974821,0.03,258.49,258.48,20.0]
[1737872975002,0.03,258.49,258.48,20.38675016]
[1737872976028,0.03,258.49,258.48,24.25545016]
[1737872976929,0.03,258.49,258.48,25.25545016]
[1737872978436,0.03,258.49,258.48,55.25545016]
[1737872985736,0.03,258.49,258.48,25.25545016]
[1737872986133,0.03,258.49,258.48,4.8687]
[1737872988852,0.03,258.49,258.48,34.8687]
[1737872997660,0.03,258.49,258.48,4.8687]
[1737872998625,0.03,258.49,258.48,29.03237956]
[1737872998939,0.03,258.5,258.48,29.03237956]
[1737873000439,0.03,258.61,258.6,1.0]
[1737873003630,80.9,258.6,258.54,1.0]
[1737873003851,23.776884,258.58,258.55,30.0]
[1737873004460,23.776884,258.58,258.53,1.0]
[1737873004658,6.72459705,258.55,258.53,1.0]
[1737873006364,3.8673,258.58,258.55,1.0]
[1737873006730,87.62459705,258.59,258.55,1.0]
[1737873007664,91.49169705,258.59,258.55,1.0]
[1737873009473,87.62459705,258.59,258.57,1.0]
[1737873009773,87.62459705,258.59,258.55,1.0]
[1737873009961,6.72459705,258.57,258.53,1.0]
[1737873010165,6.72459705,258.55,258.51,1.0]
[1737873011570,10.59239705,258.55,258.51,1.0]
[1737873012273,6.72459705,258.52,258.5,0.063]
[1737873012444,80.9,258.51,258.5,0.063]
[1737873012975,6.72459705,258.52,258.5,0.063]
[1737873013362,3.8683,258.51,258.5,0.063]
[1737873014143,27.645184,258.51,258.5,0.063]
[1737873018582,20.0,258.47,258.45,0.0001]
[1737873018877,30.50148105,258.46,258.45,0.0001]
[1737873019846,6.72459705,258.46,258.45,0.0001]
[1737873021061,6.72459705,258.5,258.46,1.0]
[1737873021886,6.72459705,258.5,258.48,1.0]
[1737873022189,10.59269705,258.52,258.48,1.0]
[1737873022391,80.9,258.51,258.48,1.0]
[1737873023871,80.9,258.51,258.5,1.0]
[1737873024195,10.59249705,258.54,258.52,1.0]
[1737873024376,6.72459705,258.54,258.52,1.0]
[1737873026671,6.72459705,258.54,258.5,1.0]
[1737873026873,10.59249705,258.54,258.5,1.0]
[1737873027286,6.72459705,258.52,258.48,1.0]
[1737873028905,3.8683,258.51,258.48,1.0]
[1737873032998,80.9,258.5,258.48,1.0]
[1737873035680,80.9,258.5,258.48,1.063]
[1737873036100,80.93,258.5,258.48,1.063]
[1737873038003,87.65459705,258.5,258.48,1.063]
[1737873038902,80.9,258.49,258.48,1.063]
[1737873046710,0.03,258.5,258.48,1.063]
[1737873047003,0.03,258.5,258.49,3.8686]
[1737873048303,0.03,258.5,258.49,23.8686]
[1737873048817,0.03,258.5,258.49,77.645484]
[1737873049711,0.03,258.5,258.49,78.645484]
[1737873051598,80.9,258.59,258.58,1.0]
[1737873051801,80.9,258.65,258.6,1.0]
[1737873062621,0.03,258.61,258.6,1.0]
[1737873063100,0.03,258.61,258.6,24.776884]
[1737873063526,80.9,258.71,258.7,1.0]
[1737873066097,0.03,258.72,258.7,5.8653]
[1737873066432,0.03,258.72,258.71,0.38644591]
[1737873067224,0.03,258.72,258.71,54.16332991]
[1737873079138,0.03,258.72,258.71,55.16332991]
[1737873081356,0.03,258.76,258.74,45.776884]
[1737873081643,0.03,258.79,258.78,1.0]
[1737873081945,0.03,258.79,258.78,24.776884]
[1737873082449,0.03,258.79,258.78,54.776884]
[1737873084044,0.03,258.79,258.78,58.641084]
[1737873085148,0.03,258.79,258.78,60.641084]
[1737873085318,0.03,258.87,258.82,20.0]
[1737873085520,0.03,258.87,258.83,1.38623046]
[1737873086531,0.03,258.87,258.86,20.0]
[1737873086739,0.03,258.87,258.86,21.0]
[1737873091152,0.03,258.87,258.86,31.0]
[1737873091535,0.03,258.87,258.86,1.0]
[1737873095953,0.03,258.87,258.86,1.38618855]
[1737873096938,0.03,258.87,258.86,25.16307255]
[1737873098152,0.03,258.87,258.86,1.38618855]
[1737873098350,0.03,258.87,258.86,1.0]
[1737873099943,0.03,258.87,258.86,31.0]
[1737873101558,0.03,258.87,258.86,1.0]
[1737873103438,1.6243,258.87,258.84,1.0]
[1737873103639,6.72459705,258.86,258.84,1.0]
[1737873103941,10.58779705,258.86,258.84,1.0]
[1737873110450,1.6243,258.87,258.8,0.063]
[1737873110451,1.6243,258.87,258.86,1.0]
[1737873113565,3.863,258.86,258.84,1.0]
[1737873113861,10.58759705,258.86,258.84,1.0]
[1737873115469,10.58759705,258.86,258.82,1.0]
[1737873116273,80.9,258.85,258.82,1.0]
[1737873117858,84.7633,258.85,258.82,1.0]
[1737873118183,87.62459705,258.84,258.8,1.063]
[1737873118464,13.29279705,258.81,258.8,0.063]
[1737873120148,40.93348105,258.81,258.8,0.063]
[1737873121571,42.53588105,258.81,258.8,0.063]
[1737873121874,42.53588105,258.81,258.8,0.0001]
[1737873122093,23.776884,258.76,258.67,1.0]
[1737873122546,6.72459705,258.72,258.65,1.0]
[1737873122755,6.72459705,258.7,258.67,1.0]
[1737873123152,6.72459705,258.72,258.67,1.0]
[1737873123353,10.58989705,258.72,258.67,1.0]
[1737873123662,23.776884,258.78,258.67,1.0]
[1737873123663,80.9,258.69,258.67,1.0]
[1737873124555,80.9,258.69,258.67,4.8658]
[1737873125663,80.9,258.69,258.67,1.0]
[1737873126278,6.72459705,258.68,258.65,1.0]
[1737873126581,6.72459705,258.68,258.63,1.0]
[1737873127261,80.9,258.67,258.63,1.0]
[1737873127462,10.59069705,258.66,258.61,1.063]
[1737873127773,80.9,258.65,258.61,1.063]
[1737873129579,84.7662,258.65,258.61,1.063]
[1737873130865,80.9,258.65,258.63,1.0]
[1737873131063,80.9,258.64,258.63,1.0]
[1737873135166,80.9,258.64,258.61,1.063]
[1737873136280,6.72459705,258.63,258.61,0.063]
[1737873136888,6.72459705,258.63,258.62,1.0]
[1737873137064,6.72459705,258.65,258.62,1.0]
[1737873139092,6.72459705,258.67,258.66,1.0]
[1737873139298,80.9,258.69,258.66,1.0]
[1737873139587,80.9,258.69,258.68,1.0]
[1737873139801,10.58949705,258.74,258.68,1.0]
[1737873140284,10.58949705,258.74,258.7,1.0]
[1737873141669,6.72459705,258.72,258.68,1.0]
[1737873141872,6.72459705,258.7,258.64,1.0]
[1737873142077,6.72459705,258.67,258.64,1.0]
[1737873145895,80.9,258.66,258.64,1.0]
[1737873148697,80.9,258.65,258.62,1.063]
[1737873148990,6.72459705,258.63,258.62,0.063]
[1737873149980,10.59109705,258.63,258.62,0.063]
[1737873150288,34.36798105,258.63,258.62,0.063]
[1737873153693,34.36798105,258.63,258.62,0.0001]
[1737873153874,7.6774,258.61,258.6,0.0001]
[1737873154076,38.17888105,258.61,258.6,0.0001]
[1737873155705,42.04568105,258.61,258.6,0.0001]
[1737873159205,20.0,258.57,258.54,0.063]
[1737873159386,30.50148105,258.55,258.54,0.063]
[1737873161302,34.36918105,258.55,258.54,0.063]
[1737873163075,34.36918105,258.55,258.54,0.0001]
[1737873163280,35.34378053,258.55,258.54,0.0001]
[1737873163511,20.0,258.51,258.48,0.063]
[1737873163812,30.50148105,258.5,258.48,0.063]
[1737873164889,31.47608053,258.5,258.48,0.063]
[1737873165619,27.645484,258.49,258.48,0.063]
[1737873166178,24.75148348,258.48,258.45,0.0001]
[1737873166396,50.50148105,258.46,258.45,0.0001]
[1737873167306,54.37048105,258.46,258.45,0.0001]
[1737873169822,26.72459705,258.46,258.45,0.0001]
[1737873170195,50.50148105,258.46,258.45,0.0001]
[1737873174118,51.47608053,258.46,258.45,0.0001]
[1737873174987,50.50148105,258.46,258.45,0.0001]
[1737873177821,30.50148105,258.46,258.45,0.0001]
[1737873179422,6.72459705,258.46,258.45,0.0001]
[1737873179933,26.72459705,258.48,258.45,1.0001]
[1737873180100,20.0,258.48,258.45,1.0001]
[1737873180307,3.8678,258.54,258.45,1.0001]
[1737873181098,20.0,258.49,258.45,1.0001]
[1737873181297,23.776884,258.48,258.45,0.0001]
[1737873183500,23.776884,258.46,258.45,0.0001]
[1737873183696,43.776884,258.43,258.36,0.063]
[1737873183899,23.776884,258.38,258.36,0.063]
[1737873186333,3.8704,258.37,258.36,0.063]
[1737873191833,27.647284,258.37,258.36,0.063]
[1737873192053,23.776884,258.36,258.35,0.063]
[1737873192248,23.776884,258.36,258.34,0.063]
[1737873192421,48.62188348,258.37,258.34,0.063]
[1737873192612,23.776884,258.32,258.26,1.0]
[1737873192815,23.776884,258.32,258.24,1.063]
[1737873193132,23.776884,258.28,258.24,0.063]
[1737873193322,23.776884,258.24,258.23,0.063]
[1737873193644,0.97459948,258.29,258.23,0.063]
[1737873193817,20.0,258.25,258.23,0.063]
[1737873194018,3.8723,258.24,258.23,0.063]
[1737873194218,3.8723,258.24,258.23,0.0001]
[1737873196845,47.649184,258.24,258.23,0.0001]
[1737873198540,43.776884,258.2,258.13,1.0]
[1737873199349,44.75148348,258.2,258.1,1.063]
[1737873200039,44.75148348,258.2,258.1,0.063]
[1737873200737,20.0,258.12,258.1,0.063]
[1737873200949,80.9,258.11,258.1,0.063]
[1737873202244,80.9,258.11,258.1,1.063]
[1737873202648,80.9,258.11,258.1,0.063]
[1737873203560,80.9,258.11,258.1,1.063]
[1737873215875,80.9,258.19,258.1,1.063]
[1737873216048,80.9,258.23,258.22,1.0]
[1737873217668,80.9,258.23,258.22,4.8726]
[1737873220167,23.776884,258.33,258.22,4.8726]
[1737873221740,27.647884,258.33,258.22,4.8726]
[1737873223068,80.9,258.34,258.23,21.5102]
[1737873223286,80.9,258.34,258.23,22.5102]
[1737873224647,84.7709,258.34,258.22,4.8726]
[1737873227468,3.8711,258.32,258.22,1.0]
[1737873227667,3.8711,258.32,258.22,4.8726]
[1737873229153,84.7709,258.34,258.22,4.8726]
[1737873231277,20.0,258.2,258.12,1.0]
[1737873231473,104.676884,258.19,258.13,31.0]
[1737873231646,104.676884,258.19,258.13,30.0]
[1737873232156,104.676884,258.19,258.13,31.0]
[1737873232364,104.676884,258.19,258.13,1.0]
[1737873232568,23.776884,258.15,258.1,0.063]
[1737873233147,23.776884,258.15,258.1,1.063]
[1737873233452,23.776884,258.15,258.12,1.0]
[1737873233652,43.776884,258.15,258.12,1.0]
[1737873233866,20.0,258.15,258.12,1.0]
[1737873234951,20.0,258.15,258.1,1.063]
[1737873235171,3.8738,258.14,258.1,1.063]
[1737873235976,27.650984,258.13,258.1,1.063]
[1737873236165,27.650984,258.13,258.1,0.063]
[1737873239378,7.7971,258.14,258.12,1.0]
[1737873239567,6.2427,258.14,258.12,1.0]
[1737873240379,6.2427,258.14,258.1,1.063]
[1737873240587,23.776884,258.13,258.1,0.063]
[1737873240968,80.9,258.12,258.1,0.063]
[1737873241672,3.8743,258.11,258.1,0.063]
[1737873242388,27.651184,258.11,258.1,0.063]
[1737873246396,3.874,258.13,258.1,0.063]
[1737873246777,23.776884,258.12,258.1,0.063]
[1737873248290,3.8738,258.15,258.11,1.0]
[1737873248801,7.7485,258.19,258.11,1.0]
[1737873248971,23.776884,258.18,258.11,1.0]
[1737873249171,20.0,258.15,258.11,1.0]
[1737873249394,3.8731,258.19,258.14,1.0]
[1737873249801,20.0,258.17,258.14,1.0]
[1737873249998,20.0,258.17,258.16,1.0]
[1737873250198,0.063,258.19,258.16,1.0]
[1737873251111,0.063,258.19,258.18,1.0]
[1737873255890,3.9362,258.19,258.15,1.0]
[1737873256790,3.9362,258.19,258.17,1.0]
[1737873257920,0.063,258.19,258.17,1.0]
[1737873261697,0.063,258.19,258.17,1.03]
[1737873266313,0.063,258.19,258.17,4.9033]
[1737873268133,0.063,258.19,258.17,1.03]
[1737873279846,3.9362,258.19,258.17,1.03]
[1737873282652,80.9,258.18,258.17,1.03]
[1737873284154,80.9,258.18,258.17,0.03]
[1737873285548,80.9,258.18,258.17,1.03]
[1737873287759,20.0,258.18,258.17,0.03]
[1737873288642,20.0,258.18,258.17,1.03]
[1737873289152,3.9361,258.19,258.17,1.03]
[1737873292767,0.063,258.19,258.17,1.03]
[1737873301940,0.063,258.19,258.17,4.9033]
[1737873302771,0.063,258.19,258.17,6.5513]
[1737873307945,0.063,258.19,258.17,2.678]
[1737873308151,0.063,258.19,258.17,1.03]
[1737873309280,3.9361,258.19,258.17,1.03]
[1737873310666,0.063,258.19,258.17,1.03]
[1737873312962,0.063,258.19,258.17,4.9033]
[1737873315279,0.063,258.19,258.17,1.03]
[1737873321388,80.9,258.18,258.17,1.03]
[1737873322474,0.063,258.19,258.17,1.03]
[1737873322673,0.063,258.19,258.18,3.8732]
[1737873322878,0.063,258.19,258.18,23.8732]
[1737873323593,0.063,258.19,258.18,4.8732]
[1737873325583,0.063,258.19,258.18,25.8732]
[1737873326099,0.063,258.19,258.18,5.8732]
[1737873326598,0.03,258.24,258.23,1.0]
[1737873326787,0.03,258.24,258.23,2.0]
[1737873327961,0.03,258.24,258.23,5.8725]
[1737873330412,0.03,258.24,258.23,29.649384]
[1737873330697,0.0001,258.24,258.23,29.649384]
[1737873331286,80.9,258.43,258.42,1.0]
[1737873333192,84.7695,258.43,258.4,1.0]
[1737873333696,84.7695,258.43,258.42,1.0]
[1737873336091,3.8695,258.43,258.42,1.0]
[1737873337478,3.8988,258.48,258.42,1.0]
[1737873337704,0.03,258.45,258.44,1.0]
[1737873338699,0.03,258.45,258.42,1.0]
[1737873338998,3.8993,258.45,258.42,1.0]
[1737873339203,0.03,258.45,258.42,1.0]
[1737873340298,0.03,258.45,258.44,1.0]
[1737873354412,0.03,258.45,258.42,1.0]
[1737873356318,80.9,258.44,258.42,1.0]
[1737873357306,3.8695,258.43,258.42,1.0]
[1737873359812,3.8992,258.45,258.42,1.0]
[1737873360931,0.03,258.45,258.42,1.0]
[1737873361219,0.03,258.45,258.44,1.0]
[1737873362924,0.03,258.45,258.42,1.0]
[1737873364320,20.03,258.45,258.42,1.0]
[1737873365027,0.03,258.45,258.42,1.0]
[1737873365241,20.03,258.45,258.42,1.0]
[1737873366224,0.03,258.45,258.42,1.0]
[1737873366413,3.8693,258.44,258.42,1.0]
[1737873367620,80.9,258.43,258.4,1.0]
[1737873367823,80.9,258.43,258.38,1.0]
[1737873368135,23.776884,258.42,258.38,1.0]
[1737873368426,23.776884,258.42,258.36,1.0]
[1737873368626,80.9,258.41,258.36,1.0]
[1737873369910,3.8699,258.4,258.36,1.0]
[1737873371128,3.8699,258.4,258.29,20.0]
[1737873371129,104.676884,258.39,258.35,1.0]
[1737873371507,80.9,258.39,258.38,1.0]
[1737873374730,0.03,258.45,258.44,1.0]
[1737873417162,0.03,258.45,258.42,1.0]
[1737873417335,0.03,258.45,258.4,1.0]
[1737873418663,3.8992,258.45,258.4,1.0]
[1737873419269,80.9,258.44,258.4,1.0]
[1737873419449,23.776884,258.43,258.36,1.0]
[1737873419772,80.9,258.42,258.36,1.0]